[Event "Polgar Challenge 2021"]
[Site "Online"]
[Date "2021.04.04"]
[Round "13.9"]
[White "Khademalsharieh, Sarasadat"]
[Black "Mammadzada, Gunay"]
[Result "1-0"]
[ECO "D15"]
[WhiteElo "2494"]
[BlackElo "2443"]
[Annotator "ChessBase"]
[PlyCount "115"]
[EventDate "2021.04.08"]
[EventType "tourn"]
[EventCountry "NET"]
[SourceTitle "playchess.com"]
[Source "ChessBase"]
[SourceQuality "1"]
[TimeControl "600+5"]

1. Nf3 {[%emt 0:00:00]} d5 {[%emt 0:00:00]} 2. e3 {[%emt 0:00:00]} Nf6 {[%emt 0:00:01]} 3. c4 {[%emt 0:00:01]} c6 {[%emt 0:00:02]} 4. Nc3 {[%emt 0:00:05]} a6 {[%emt 0:00:07]} 5. d4 {[%emt 0:00:32]} Bf5 {[%emt 0:00:02]} 6. Ne5 {[%emt 0:00:01]} Nbd7 {[%emt 0:00:02]} 7. Qb3 {[%emt 0:00:05]} Qc7 {[%emt 0:00:02]} 8. cxd5 {[%emt 0:00:03]} Nxe5 {[%emt 0:00:02]} 9. dxe5 {[%emt 0:00:01]} Nxd5 {[%emt 0:00:01]} 10. Bc4 {[%emt 0:00:02]} e6 {[%emt 0:00:03]} 11. e4 {[%emt 0:00:09]} Nxc3 {[%emt 0:00:02]} 12. exf5 {[%emt 0:00:02]} Nd5 {[%emt 0:00:01]} 13. Bxd5 {[%emt 0:00:00]} cxd5 {[%emt 0:01:33]} 14. O-O {[%emt 0:00:20]} Be7 {[%emt 0:02:20]} 15. Qg3 {[%emt 0:00:22]} g6 {[%emt 0:02:37]} 16. f6 {[%emt 0:00:38]} Bc5 {[%emt 0:00:02]} 17. Be3 {[%emt 0:00:42]} d4 {[%emt 0:01:20]} 18. Bh6 {[%emt 0:00:27]} Qd7 {[%emt 0:00:34]} 19. Rac1 {[%emt 0:00:06]} Qd5 {[%emt 0:00:13]} 20. a3 {[%emt 0:02:45]} Kd7 {[%emt 0:00:13]} 21. b4 {[%emt 0:00:21]} Bb6 {[%emt 0:00:01]} 22. Rcd1 {[%emt 0:00:04]} Rac8 {[%emt 0:00:11]} 23. Rd3 {[%emt 0:00:02]} Rc4 {[%emt 0:00:33]} 24. Rfd1 {[%emt 0:00:04]} Kc8 {[%emt 0:00:06]} 25. h4 {[%emt 0:00:25]} Bc7 {[%emt 0:00:30]} 26. Re1 {[%emt 0:01:01]} Rd8 {[%emt 0:00:11]} 27. h5 {[%emt 0:00:21]} Kb8 {[%emt 0:00:24]} 28. Bf4 {[%emt 0:00:04]} Qc6 {[%emt 0:00:12]} 29. Bd2 {[%emt 0:01:00]} Rd5 {[%emt 0:00:06]} 30. f4 {[%emt 0:00:30]} Rd8 {[%emt 0:00:13]} 31. Rd1 {[%emt 0:00:04]} Bb6 {[%emt 0:00:03]} 32. Be1 {[%emt 0:00:16]} gxh5 {[%emt 0:00:18]} 33. Bf2 {[%emt 0:00:09]} Qe4 {[%emt 0:00:13]} 34. Qh4 {[%emt 0:00:15]} Rg8 {[%emt 0:00:03]} 35. Rg3 {[%emt 0:00:10]} Rxg3 {[%emt 0:00:11]} 36. Qxg3 {[%emt 0:00:02]} Qg6 {[%emt 0:00:01]} 37. Qf3 {[%emt 0:00:07]} Qg4 {[%emt 0:00:04]} 38. Qxg4 {[%emt 0:00:29]} hxg4 {[%emt 0:00:00]} 39. f5 {[%emt 0:00:10]} Rc6 {[%emt 0:00:32]} 40. Bxd4 {[%emt 0:00:19]} Kc7 {[%emt 0:00:01]} 41. Bxb6+ {[%emt 0:00:10]} Rxb6 {[%emt 0:00:00]} 42. fxe6 {[%emt 0:00:19]} Rxe6 {[%emt 0:00:02]} 43. Rd5 {[%emt 0:00:02]} b6 {[%emt 0:00:04]} 44. Kh2 {[%emt 0:00:11]} h5 {[%emt 0:00:15]} 45. Kg3 {[%emt 0:00:05]} Kc6 {[%emt 0:00:00]} 46. Rd8 {[%emt 0:00:14]} Rxe5 {[%emt 0:00:02]} 47. Rf8 {[%emt 0:00:01]} Kd6 {[%emt 0:00:02]} 48. Rxf7 {[%emt 0:00:03]} Ke6 {[%emt 0:00:01]} 49. Rb7 {[%emt 0:00:26]} Kxf6 {[%emt 0:00:04]} 50. Rxb6+ {[%emt 0:00:01]} Kg5 {[%emt 0:00:07]} 51. Rxa6 {[%emt 0:00:02]} Re3+ {[%emt 0:00:01]} 52. Kh2 {[%emt 0:00:02]} Kh4 {[%emt 0:00:10]} 53. Rf6 {[%emt 0:00:11]} Rxa3 {[%emt 0:00:05]} 54. Rf5 {[%emt 0:00:12]} Rb3 {[%emt 0:00:07]} 55. g3+ {[%emt 0:00:04]} Rxg3 {[%emt 0:00:06]} 56. Rxh5+ {[%emt 0:00:00]} Kxh5 {[%emt 0:00:00]} 57. Kxg3 {[%emt 0:00:01]} Kg5 {[%emt 0:00:09]} 58. b5 {[%emt 0:00:03]} 1-0

[Event "Polgar Challenge 2021"]
[Site "Online"]
[Date "2021.04.04"]
[Round "14.4"]
[White "Badelka, Olga"]
[Black "Abdumalik, Zhansaya"]
[Result "1-0"]
[ECO "E60"]
[WhiteElo "2433"]
[BlackElo "2472"]
[Annotator "ChessBase"]
[PlyCount "133"]
[EventDate "2021.04.08"]
[EventType "tourn"]
[EventCountry "NET"]
[SourceTitle "playchess.com"]
[Source "ChessBase"]
[SourceQuality "1"]
[TimeControl "600+5"]

1. d4 {[%emt 0:00:00]} Nf6 {[%emt 0:00:00]} 2. Nf3 {[%emt 0:00:00]} g6 {[%emt 0:00:00]} 3. g3 {[%emt 0:00:04]} Bg7 {[%emt 0:00:14]} 4. c4 {[%emt 0:00:04]} c5 {[%emt 0:00:07]} 5. Nc3 {[%emt 0:00:04]} cxd4 {[%emt 0:00:18]} 6. Nxd4 {[%emt 0:00:02]} O-O {[%emt 0:00:03]} 7. Bg2 {[%emt 0:00:03]} Qc7 {[%emt 0:00:00]} 8. Qd3 {[%emt 0:00:03]} Nc6 {[%emt 0:00:34]} 9. O-O {[%emt 0:00:05]} Ne5 {[%emt 0:00:36]} 10. Qe3 {[%emt 0:00:02]} d6 {[%emt 0:00:43]} 11. b3 {[%emt 0:00:16]} Qb6 {[%emt 0:00:48]} 12. Na4 {[%emt 0:01:17]} Qc7 {[%emt 0:00:51]} 13. Bb2 {[%emt 0:00:15]} Bd7 {[%emt 0:00:08]} 14. Nc3 {[%emt 0:00:08]} a6 {[%emt 0:00:08]} 15. h3 {[%emt 0:00:30]} Rfe8 {[%emt 0:00:12]} 16. Rac1 {[%emt 0:00:22]} Qb6 {[%emt 0:00:24]} 17. Nd5 {[%emt 0:01:27]} Qd8 {[%emt 0:00:24]} 18. Nxf6+ {[%emt 0:02:09]} Bxf6 {[%emt 0:00:45]} 19. f4 {[%emt 0:00:03]} Nc6 {[%emt 0:00:01]} 20. Nxc6 {[%emt 0:00:01]} Bxc6 {[%emt 0:00:19]} 21. Bxf6 {[%emt 0:00:12]} exf6 {[%emt 0:00:03]} 22. Qf2 {[%emt 0:00:37]} Qa5 {[%emt 0:00:13]} 23. Rc2 {[%emt 0:00:23]} Rac8 {[%emt 0:00:40]} 24. Rd1 {[%emt 0:00:29]} Re6 {[%emt 0:00:33]} 25. Rcd2 {[%emt 0:00:31]} Rce8 {[%emt 0:00:19]} 26. Bf1 {[%emt 0:00:32]} Qb4 {[%emt 0:00:26]} 27. f5 {[%emt 0:00:49]} Re5 {[%emt 0:01:28]} 28. fxg6 {[%emt 0:00:02]} hxg6 {[%emt 0:00:01]} 29. Rxd6 {[%emt 0:00:17]} Rf5 {[%emt 0:00:15]} 30. Qd4 {[%emt 0:00:10]} Re4 {[%emt 0:00:09]} 31. Rd8+ {[%emt 0:00:24]} Kg7 {[%emt 0:00:01]} 32. Qd6 {[%emt 0:00:09]} Qb6+ {[%emt 0:00:28]} 33. Rd4 {[%emt 0:00:06]} Kh7 {[%emt 0:00:48]} 34. Qf8 {[%emt 0:00:31]} Qxd4+ {[%emt 0:00:01]} 35. Rxd4 {[%emt 0:00:02]} Rxd4 {[%emt 0:00:01]} 36. Qxf7+ {[%emt 0:00:01]} Kh6 {[%emt 0:00:04]} 37. Qf8+ {[%emt 0:00:05]} Kg5 {[%emt 0:00:16]} 38. Qh8 {[%emt 0:00:34]} Re5 {[%emt 0:00:37]} 39. Kf2 {[%emt 0:00:02]} Kf5 {[%emt 0:00:06]} 40. g4+ {[%emt 0:00:15]} Ke6 {[%emt 0:00:05]} 41. Qg8+ {[%emt 0:00:07]} Ke7 {[%emt 0:00:05]} 42. Qg7+ {[%emt 0:00:02]} Ke6 {[%emt 0:00:02]} 43. Qg8+ {[%emt 0:00:02]} Ke7 {[%emt 0:00:03]} 44. Qxg6 {[%emt 0:00:04]} Rf4+ {[%emt 0:00:03]} 45. Ke1 {[%emt 0:00:01]} Rd4 {[%emt 0:00:12]} 46. h4 {[%emt 0:00:06]} Be8 {[%emt 0:00:02]} 47. Qg7+ {[%emt 0:00:03]} Bf7 {[%emt 0:00:01]} 48. g5 {[%emt 0:00:05]} Ke8 {[%emt 0:00:11]} 49. Qxf6 {[%emt 0:00:05]} Rde4 {[%emt 0:00:05]} 50. g6 {[%emt 0:00:01]} Bg8 {[%emt 0:00:01]} 51. Qh8 {[%emt 0:00:16]} Kf8 {[%emt 0:00:03]} 52. Qf6+ {[%emt 0:00:08]} Ke8 {[%emt 0:00:01]} 53. g7 {[%emt 0:00:00]} Kd7 {[%emt 0:00:02]} 54. Qf8 {[%emt 0:00:03]} Re8 {[%emt 0:00:01]} 55. Qf5+ {[%emt 0:00:14]} Kc7 {[%emt 0:00:01]} 56. h5 {[%emt 0:00:06]} R4e6 {[%emt 0:00:01]} 57. Qf4+ {[%emt 0:00:04]} Kb6 {[%emt 0:00:06]} 58. h6 {[%emt 0:00:02]} Bh7 {[%emt 0:00:00]} 59. Qd4+ {[%emt 0:00:05]} Kc7 {[%emt 0:00:04]} 60. Qf4+ {[%emt 0:00:05]} Kb6 {[%emt 0:00:01]} 61. Qd4+ {[%emt 0:00:01]} Kc7 {[%emt 0:00:00]} 62. a4 {[%emt 0:00:02]} Rd6 {[%emt 0:00:06]} 63. Qf4 {[%emt 0:00:02]} Kc6 {[%emt 0:00:06]} 64. Bg2+ {[%emt 0:00:06]} Kd7 {[%emt 0:00:01]} 65. Bd5 {[%emt 0:00:06]} Rg6 {[%emt 0:00:06]} 66. Qf7+ {[%emt 0:00:06]} Re7 {[%emt 0:00:04]} 67. Qxg6 {[%emt 0:00:02]} 1-0

[Event "Polgar Challenge 2021"]
[Site "Online"]
[Date "2021.04.04"]
[Round "14.5"]
[White "Lei, Tingjie"]
[Black "Mendonca, Leon Luke"]
[Result "0-1"]
[ECO "B90"]
[WhiteElo "2505"]
[BlackElo "2549"]
[Annotator "ChessBase"]
[PlyCount "124"]
[EventDate "2021.04.08"]
[EventType "tourn"]
[EventCountry "NET"]
[SourceTitle "playchess.com"]
[Source "ChessBase"]
[SourceQuality "1"]
[TimeControl "600+5"]

1. e4 {[%emt 0:00:00]} c5 {[%emt 0:00:00]} 2. Nf3 {[%emt 0:00:00]} d6 {[%emt 0:00:09]} 3. d4 {[%emt 0:00:00]} cxd4 {[%emt 0:00:01]} 4. Nxd4 {[%emt 0:00:00]} Nf6 {[%emt 0:00:00]} 5. Nc3 {[%emt 0:00:00]} a6 {[%emt 0:00:02]} 6. a4 {[%emt 0:00:01]} g6 {[%emt 0:00:45]} 7. Be2 {[%emt 0:00:02]} Bg7 {[%emt 0:00:03]} 8. O-O {[%emt 0:00:01]} O-O {[%emt 0:00:03]} 9. Be3 {[%emt 0:00:01]} Nc6 {[%emt 0:00:08]} 10. Qd2 {[%emt 0:00:01]} Bd7 {[%emt 0:00:49]} 11. Rfd1 {[%emt 0:00:03]} Rc8 {[%emt 0:00:50]} 12. f3 {[%emt 0:00:02]} Nxd4 {[%emt 0:02:40]} 13. Bxd4 {[%emt 0:00:03]} Be6 {[%emt 0:00:03]} 14. a5 {[%emt 0:01:53]} Bc4 {[%emt 0:00:51]} 15. Ra4 {[%emt 0:00:35]} Bxe2 {[%emt 0:00:24]} 16. Qxe2 {[%emt 0:00:07]} Qd7 {[%emt 0:00:51]} 17. Rb4 {[%emt 0:00:29]} Qc7 {[%emt 0:00:15]} 18. Bb6 {[%emt 0:01:03]} Qc6 {[%emt 0:00:16]} 19. Rd2 {[%emt 0:01:21]} Rfe8 {[%emt 0:00:18]} 20. Nd5 {[%emt 0:00:59]} Nd7 {[%emt 0:00:48]} 21. Be3 {[%emt 0:00:14]} e6 {[%emt 0:00:16]} 22. Nb6 {[%emt 0:00:12]} Nxb6 {[%emt 0:00:01]} 23. Rxb6 {[%emt 0:00:01]} Qa4 {[%emt 0:00:18]} 24. c3 {[%emt 0:00:57]} d5 {[%emt 0:00:24]} 25. Rxb7 {[%emt 0:00:09]} Qxa5 {[%emt 0:00:10]} 26. Bd4 {[%emt 0:00:56]} Bxd4+ {[%emt 0:00:46]} 27. Rxd4 {[%emt 0:00:03]} Qc5 {[%emt 0:00:24]} 28. Qf2 {[%emt 0:00:26]} dxe4 {[%emt 0:00:22]} 29. fxe4 {[%emt 0:00:48]} Rc7 {[%emt 0:00:16]} 30. Rxc7 {[%emt 0:01:02]} Qxc7 {[%emt 0:00:00]} 31. Qf6 {[%emt 0:00:02]} Rb8 {[%emt 0:00:08]} 32. Rd2 {[%emt 0:00:35]} Qb6+ {[%emt 0:00:04]} 33. Qf2 {[%emt 0:00:17]} Qc6 {[%emt 0:00:07]} 34. Qf4 {[%emt 0:00:04]} Qb6+ {[%emt 0:00:05]} 35. Qf2 {[%emt 0:00:13]} Qc6 {[%emt 0:00:03]} 36. Qf4 {[%emt 0:00:07]} Qc5+ {[%emt 0:00:06]} 37. Qf2 {[%emt 0:00:03]} Qe5 {[%emt 0:00:06]} 38. Qd4 {[%emt 0:00:11]} Qxd4+ {[%emt 0:00:03]} 39. cxd4 {[%emt 0:00:01]} Kf8 {[%emt 0:00:01]} 40. Kf2 {[%emt 0:00:02]} Ke7 {[%emt 0:00:01]} 41. Rc2 {[%emt 0:00:04]} Kd6 {[%emt 0:00:07]} 42. Ke3 {[%emt 0:00:07]} Rb3+ {[%emt 0:00:03]} 43. Kf4 {[%emt 0:00:10]} f5 {[%emt 0:00:05]} 44. exf5 {[%emt 0:00:04]} gxf5 {[%emt 0:00:04]} 45. Rc8 {[%emt 0:00:10]} Rxb2 {[%emt 0:00:06]} 46. Rd8+ {[%emt 0:00:02]} Ke7 {[%emt 0:00:03]} 47. Rh8 {[%emt 0:00:02]} Rxg2 {[%emt 0:00:03]} 48. Rxh7+ {[%emt 0:00:01]} Kd6 {[%emt 0:00:02]} 49. h4 {[%emt 0:00:10]} Rg4+ {[%emt 0:00:08]} 50. Ke3 {[%emt 0:00:01]} Rg3+ {[%emt 0:00:07]} 51. Ke2 {[%emt 0:00:12]} Kd5 {[%emt 0:00:06]} 52. Rd7+ {[%emt 0:00:01]} Kc6 {[%emt 0:00:12]} 53. Ra7 {[%emt 0:00:03]} Rh3 {[%emt 0:00:03]} 54. Re7 {[%emt 0:00:09]} Kd5 {[%emt 0:00:04]} 55. Rd7+ {[%emt 0:00:01]} Kc6 {[%emt 0:00:10]} 56. Ra7 {[%emt 0:00:08]} Rxh4 {[%emt 0:00:04]} 57. Rxa6+ {[%emt 0:00:01]} Kd5 {[%emt 0:00:01]} 58. Ra5+ {[%emt 0:00:07]} Kc4 {[%emt 0:00:09]} 59. Ra6 {[%emt 0:00:12]} Re4+ {[%emt 0:00:08]} 60. Kf3 {[%emt 0:00:01]} Kxd4 {[%emt 0:00:04]} 61. Ra4+ {[%emt 0:00:03]} Ke5 {[%emt 0:00:01]} 62. Ra5+ {[%emt 0:00:04]} Kf6 {[%emt 0:00:01]} 0-1

[Event "Polgar Challenge 2021"]
[Site "Online"]
[Date "2021.04.04"]
[Round "14.6"]
[White "Yip, Carissa"]
[Black "Keymer, Vincent"]
[Result "0-1"]
[ECO "B97"]
[WhiteElo "2430"]
[BlackElo "2591"]
[Annotator "ChessBase"]
[PlyCount "86"]
[EventDate "2021.04.08"]
[EventType "tourn"]
[EventCountry "NET"]
[SourceTitle "playchess.com"]
[Source "ChessBase"]
[SourceQuality "1"]
[TimeControl "600+5"]

1. e4 {[%emt 0:00:00]} c5 {[%emt 0:00:00]} 2. Nf3 {[%emt 0:00:00]} d6 {[%emt 0:00:00]} 3. d4 {[%emt 0:00:00]} cxd4 {[%emt 0:00:00]} 4. Nxd4 {[%emt 0:00:00]} Nf6 {[%emt 0:00:00]} 5. Nc3 {[%emt 0:00:00]} a6 {[%emt 0:00:00]} 6. Bg5 {[%emt 0:00:05]} e6 {[%emt 0:00:00]} 7. f4 {[%emt 0:00:03]} Qb6 {[%emt 0:00:01]} 8. Qd2 {[%emt 0:00:15]} Qxb2 {[%emt 0:00:02]} 9. Rb1 {[%emt 0:00:01]} Qa3 {[%emt 0:00:02]} 10. f5 {[%emt 0:00:03]} Be7 {[%emt 0:00:15]} 11. Be2 {[%emt 0:00:15]} O-O {[%emt 0:02:42]} 12. Be3 {[%emt 0:00:18]} Qa5 {[%emt 0:01:09]} 13. g4 {[%emt 0:00:33]} Qd8 {[%emt 0:01:01]} 14. g5 {[%emt 0:00:06]} Nfd7 {[%emt 0:00:11]} 15. Rg1 {[%emt 0:01:05]} Nc6 {[%emt 0:00:39]} 16. f6 {[%emt 0:02:05]} Nxf6 {[%emt 0:00:01]} 17. gxf6 {[%emt 0:00:01]} Bxf6 {[%emt 0:00:01]} 18. Nf3 {[%emt 0:00:56]} b5 {[%emt 0:00:32]} 19. Bg5 {[%emt 0:00:28]} Bb7 {[%emt 0:00:15]} 20. Nd1 {[%emt 0:00:18]} Rc8 {[%emt 0:00:48]} 21. Nf2 {[%emt 0:00:58]} Bxg5 {[%emt 0:00:41]} 22. Qxg5 {[%emt 0:00:32]} Qxg5 {[%emt 0:00:05]} 23. Rxg5 {[%emt 0:00:01]} Ba8 {[%emt 0:00:21]} 24. Kd2 {[%emt 0:00:12]} f6 {[%emt 0:00:31]} 25. Rgg1 {[%emt 0:00:26]} Rfd8 {[%emt 0:00:05]} 26. Rgd1 {[%emt 0:00:25]} Rc7 {[%emt 0:00:17]} 27. Ke1 {[%emt 0:00:13]} Kf7 {[%emt 0:00:08]} 28. c4 {[%emt 0:00:29]} b4 {[%emt 0:00:04]} 29. Nd3 {[%emt 0:00:23]} a5 {[%emt 0:00:02]} 30. c5 {[%emt 0:00:08]} d5 {[%emt 0:00:24]} 31. exd5 {[%emt 0:00:10]} Rxd5 {[%emt 0:00:00]} 32. Rbc1 {[%emt 0:00:12]} Ne7 {[%emt 0:00:10]} 33. Rc4 {[%emt 0:00:36]} Bb7 {[%emt 0:00:19]} 34. Rd4 {[%emt 0:00:08]} e5 {[%emt 0:00:02]} 35. Rxd5 {[%emt 0:00:36]} Nxd5 {[%emt 0:00:00]} 36. c6 {[%emt 0:00:28]} Bxc6 {[%emt 0:00:15]} 37. Ndxe5+ {[%emt 0:00:20]} fxe5 {[%emt 0:00:03]} 38. Bc4 {[%emt 0:00:01]} Ke6 {[%emt 0:00:11]} 39. Kf2 {[%emt 0:00:05]} Bb7 {[%emt 0:00:41]} 40. Bb3 {[%emt 0:00:06]} a4 {[%emt 0:00:08]} 41. Bxa4 {[%emt 0:00:01]} Rf7 {[%emt 0:00:09]} 42. Bb3 {[%emt 0:00:04]} e4 {[%emt 0:00:03]} 43. Re1 {[%emt 0:00:12]} Rxf3+ {[%emt 0:00:02]} 0-1

[Event "Polgar Challenge 2021"]
[Site "Online"]
[Date "2021.04.04"]
[Round "14.8"]
[White "Salimova, Nurgyul"]
[Black "Bjerre, Jonas Buhl"]
[Result "1/2-1/2"]
[ECO "E11"]
[WhiteElo "2397"]
[BlackElo "2550"]
[Annotator "ChessBase"]
[PlyCount "148"]
[EventDate "2021.04.08"]
[EventType "tourn"]
[EventCountry "NET"]
[SourceTitle "playchess.com"]
[Source "ChessBase"]
[SourceQuality "1"]
[TimeControl "600+5"]

1. d4 {[%emt 0:00:00]} Nf6 {[%emt 0:00:00]} 2. Nf3 {[%emt 0:00:01]} d5 {[%emt 0:00:00]} 3. c4 {[%emt 0:00:04]} e6 {[%emt 0:00:00]} 4. g3 {[%emt 0:00:01]} Bb4+ {[%emt 0:00:01]} 5. Bd2 {[%emt 0:00:03]} Be7 {[%emt 0:00:01]} 6. Bg2 {[%emt 0:00:07]} O-O {[%emt 0:00:01]} 7. O-O {[%emt 0:00:23]} c6 {[%emt 0:00:02]} 8. Bf4 {[%emt 0:00:10]} dxc4 {[%emt 0:00:03]} 9. Ne5 {[%emt 0:00:24]} Nd5 {[%emt 0:00:01]} 10. Nxc4 {[%emt 0:00:03]} Nxf4 {[%emt 0:00:01]} 11. gxf4 {[%emt 0:00:01]} Qc7 {[%emt 0:00:01]} 12. e3 {[%emt 0:00:15]} Nd7 {[%emt 0:00:11]} 13. Nc3 {[%emt 0:00:16]} b6 {[%emt 0:00:24]} 14. Rc1 {[%emt 0:00:40]} Bb7 {[%emt 0:00:06]} 15. Qf3 {[%emt 0:00:17]} Rab8 {[%emt 0:01:24]} 16. Qg3 {[%emt 0:00:27]} f5 {[%emt 0:01:22]} 17. Ne5 {[%emt 0:00:31]} Nxe5 {[%emt 0:00:35]} 18. dxe5 {[%emt 0:00:07]} Rbd8 {[%emt 0:01:09]} 19. Nb5 {[%emt 0:00:30]} Qd7 {[%emt 0:00:10]} 20. Nd4 {[%emt 0:00:24]} c5 {[%emt 0:00:53]} 21. Nxe6 {[%emt 0:03:02]} Qxe6 {[%emt 0:00:43]} 22. Bxb7 {[%emt 0:00:01]} Rd2 {[%emt 0:00:15]} 23. Ba6 {[%emt 0:00:29]} Kh8 {[%emt 0:00:40]} 24. Bc4 {[%emt 0:00:06]} Qc6 {[%emt 0:00:14]} 25. Rfd1 {[%emt 0:01:17]} Rxb2 {[%emt 0:00:35]} 26. Bd5 {[%emt 0:00:02]} Qh6 {[%emt 0:00:04]} 27. Rb1 {[%emt 0:00:57]} Rxb1 {[%emt 0:01:27]} 28. Rxb1 {[%emt 0:00:02]} Rd8 {[%emt 0:00:01]} 29. Qg2 {[%emt 0:00:12]} Qg6 {[%emt 0:00:37]} 30. Qxg6 {[%emt 0:00:44]} hxg6 {[%emt 0:00:03]} 31. Bf7 {[%emt 0:00:09]} Kh7 {[%emt 0:00:31]} 32. Kg2 {[%emt 0:00:08]} Rd2 {[%emt 0:00:06]} 33. h4 {[%emt 0:00:06]} Kh6 {[%emt 0:00:12]} 34. Rh1 {[%emt 0:00:35]} b5 {[%emt 0:00:22]} 35. Rh3 {[%emt 0:00:08]} c4 {[%emt 0:00:14]} 36. Rg3 {[%emt 0:00:03]} c3 {[%emt 0:00:14]} 37. Rxg6+ {[%emt 0:00:03]} Kh7 {[%emt 0:00:01]} 38. Rc6 {[%emt 0:00:06]} c2 {[%emt 0:00:08]} 39. Bg6+ {[%emt 0:00:04]} Kg8 {[%emt 0:00:02]} 40. Rc8+ {[%emt 0:00:07]} Rd8 {[%emt 0:00:15]} 41. Rxc2 {[%emt 0:00:03]} Bxh4 {[%emt 0:00:02]} 42. Bxf5 {[%emt 0:00:04]} b4 {[%emt 0:00:06]} 43. Be6+ {[%emt 0:00:05]} Kh8 {[%emt 0:00:04]} 44. Kf3 {[%emt 0:00:06]} g6 {[%emt 0:00:05]} 45. Rc1 {[%emt 0:00:08]} Kg7 {[%emt 0:00:08]} 46. Rc7+ {[%emt 0:00:02]} Kh6 {[%emt 0:00:01]} 47. Rxa7 {[%emt 0:00:04]} Rd2 {[%emt 0:00:01]} 48. Ra8 {[%emt 0:00:10]} Rxf2+ {[%emt 0:00:05]} 49. Kg4 {[%emt 0:00:06]} Be7 {[%emt 0:00:04]} 50. Rh8+ {[%emt 0:00:03]} Kg7 {[%emt 0:00:03]} 51. Rg8+ {[%emt 0:00:01]} Kh6 {[%emt 0:00:02]} 52. Re8 {[%emt 0:00:08]} Bc5 {[%emt 0:00:01]} 53. f5 {[%emt 0:00:10]} gxf5+ {[%emt 0:00:03]} 54. Bxf5 {[%emt 0:00:01]} Bxe3 {[%emt 0:00:02]} 55. Be6 {[%emt 0:00:08]} Bd4 {[%emt 0:00:05]} 56. Bb3 {[%emt 0:00:05]} Re2 {[%emt 0:00:06]} 57. Kf5 {[%emt 0:00:03]} Kg7 {[%emt 0:00:04]} 58. Rg8+ {[%emt 0:00:03]} Kh7 {[%emt 0:00:01]} 59. Re8 {[%emt 0:00:06]} Kg7 {[%emt 0:00:04]} 60. e6 {[%emt 0:00:08]} Bc5 {[%emt 0:00:03]} 61. Rc8 {[%emt 0:00:04]} Be7 {[%emt 0:00:04]} 62. Rc7 {[%emt 0:00:03]} Kf8 {[%emt 0:00:01]} 63. Rb7 {[%emt 0:00:04]} Re1 {[%emt 0:00:03]} 64. Kg6 {[%emt 0:00:06]} Rg1+ {[%emt 0:00:03]} 65. Kf5 {[%emt 0:00:01]} Re1 {[%emt 0:00:01]} 66. Rb8+ {[%emt 0:00:04]} Kg7 {[%emt 0:00:01]} 67. Re8 {[%emt 0:00:02]} Bc5 {[%emt 0:00:03]} 68. Rc8 {[%emt 0:00:09]} Be7 {[%emt 0:00:01]} 69. Rc2 {[%emt 0:00:04]} Kf8 {[%emt 0:00:13]} 70. Rg2 {[%emt 0:00:04]} Re3 {[%emt 0:00:11]} 71. Rh2 {[%emt 0:00:09]} Kg7 {[%emt 0:00:07]} 72. Rg2+ {[%emt 0:00:01]} Kf8 {[%emt 0:00:02]} 73. Kf4 {[%emt 0:00:04]} Re1 {[%emt 0:00:03]} 74. Kf5 {[%emt 0:00:06]} Re3 {[%emt 0:00:04]} 1/2-1/2

[Event "Polgar Challenge 2021"]
[Site "Online"]
[Date "2021.04.04"]
[Round "14.10"]
[White "Liang, Awonder"]
[Black "Yoo, Christopher Woojin"]
[Result "1-0"]
[ECO "B40"]
[WhiteElo "2592"]
[BlackElo "2455"]
[Annotator "ChessBase"]
[PlyCount "69"]
[EventDate "2021.04.08"]
[EventType "tourn"]
[EventCountry "NET"]
[SourceTitle "playchess.com"]
[Source "ChessBase"]
[SourceQuality "1"]
[TimeControl "600+5"]

1. e4 {[%emt 0:00:00]} c5 {[%emt 0:00:00]} 2. Nf3 {[%emt 0:00:00]} e6 {[%emt 0:00:00]} 3. Nc3 {[%emt 0:00:00]} Nc6 {[%emt 0:00:01]} 4. d4 {[%emt 0:00:00]} cxd4 {[%emt 0:00:07]} 5. Nxd4 {[%emt 0:00:01]} Nf6 {[%emt 0:00:18]} 6. Nxc6 {[%emt 0:00:07]} bxc6 {[%emt 0:00:00]} 7. Bd3 {[%emt 0:00:01]} d5 {[%emt 0:00:04]} 8. O-O {[%emt 0:00:01]} Be7 {[%emt 0:00:01]} 9. e5 {[%emt 0:00:16]} Nd7 {[%emt 0:00:03]} 10. Re1 {[%emt 0:00:02]} c5 {[%emt 0:01:21]} 11. Qg4 {[%emt 0:00:10]} g6 {[%emt 0:00:11]} 12. Bh6 {[%emt 0:00:10]} c4 {[%emt 0:00:46]} 13. Bf1 {[%emt 0:00:02]} Bf8 {[%emt 0:01:08]} 14. Bxf8 {[%emt 0:00:36]} Kxf8 {[%emt 0:00:03]} 15. b3 {[%emt 0:00:01]} cxb3 {[%emt 0:02:11]} 16. axb3 {[%emt 0:00:00]} Kg7 {[%emt 0:00:16]} 17. Nb5 {[%emt 0:00:14]} a6 {[%emt 0:00:38]} 18. Qf4 {[%emt 0:00:10]} Qe7 {[%emt 0:00:55]} 19. Nd6 {[%emt 0:00:19]} a5 {[%emt 0:00:51]} 20. c4 {[%emt 0:01:41]} dxc4 {[%emt 0:00:13]} 21. bxc4 {[%emt 0:00:59]} a4 {[%emt 0:00:07]} 22. Ra3 {[%emt 0:00:15]} Ra5 {[%emt 0:00:46]} 23. Qd4 {[%emt 0:00:06]} Rd8 {[%emt 0:00:39]} 24. Qc3 {[%emt 0:00:29]} Ra6 {[%emt 0:00:23]} 25. Qb4 {[%emt 0:01:19]} Kg8 {[%emt 0:00:43]} 26. Rxa4 {[%emt 0:00:06]} Rxa4 {[%emt 0:00:04]} 27. Qxa4 {[%emt 0:00:01]} Nxe5 {[%emt 0:00:07]} 28. Nxc8 {[%emt 0:00:03]} Qg5 {[%emt 0:00:03]} 29. Rxe5 {[%emt 0:00:05]} Qc1 {[%emt 0:00:17]} 30. Ne7+ {[%emt 0:00:12]} Kg7 {[%emt 0:00:05]} 31. c5 {[%emt 0:00:06]} Rd1 {[%emt 0:00:03]} 32. Qb5 {[%emt 0:00:01]} Qf4 {[%emt 0:00:08]} 33. Re3 {[%emt 0:00:08]} Rd2 {[%emt 0:00:07]} 34. Rf3 {[%emt 0:00:01]} Qg5 {[%emt 0:00:09]} 35. Qe8 {[%emt 0:00:03]} 1-0